[Event "CCT Julius Baer-D3 2024"]
[Site "Online"]
[Date "2024.09.27"]
[Round "51.1"]
[White "Kobalia, Mikhail"]
[Black "Esipenko, Andrey"]
[Result "0-1"]
[ECO "C88"]
[WhiteElo "2543"]
[BlackElo "2677"]
[Annotator "TA"]
[PlyCount "92"]
[EventDate "2024.09.25"]
[EventType "swiss"]
[EventCountry "NET"]
[SourceTitle "playchess.com"]
[Source "ChessBase"]
[SourceQuality "1"]
[TimeControl "600+2"]

{[%evp 28,92,43,35,35,40,38,0,39,5,0,0,0,-27,-31,-151,-151,-168,-168,-178,-168,-338,-222,-352,-318,-352,-338,-313,-289,-456,-462,-472,-441,-469,-464,-500,-500,-500,-500,-500,-500,-500,-500,-486,-396,-561,-423,-746,-522,-11085,-10676,-6160,-6299,-4916,-2754,-2344,-841,-29954,-12838,-12677,-10127,-29966,-7732,-29972,-29973,-29978,-29979]} 1. e4 {[%emt 0:00:04]} e5 {[%emt 0:00:04]} 2. Nf3 {[%emt 0:00:01]} Nc6 {[%emt 0:00:00]} 3. Bb5 {[%emt 0:00:08]} a6 {[%emt 0:00:04]} 4. Ba4 {[%emt 0:00:01]} Nf6 {[%emt 0:00:01]} 5. O-O {[%emt 0:00:02]} Be7 {[%emt 0:00:02]} 6. Re1 {[%emt 0:00:01]} b5 {[%emt 0:00:08]} 7. Bb3 {[%emt 0:00:02]} O-O {[%emt 0:00:00]} 8. a4 {[%emt 0:00:01]} b4 {[%emt 0:00:04]} 9. d3 {[%emt 0:00:05]} d6 {[%emt 0:00:01]} 10. c3 {[%emt 0:00:06]} Rb8 {[%emt 0:00:19]} 11. Nbd2 {[%emt 0:00:24]} Na5 {[%emt 0:00:08]} 12. Ba2 {[%emt 0:00:37]} Bg4 {[%emt 0:00:03]} 13. d4 {[%emt 0:00:09] C88: Closed Ruy Lopez: Anti-Marshall Systems.} Nd7 $146 {[%emt 0:00:31]} ({Predecessor:} 13... c5 14. h3 Bxf3 15. Nxf3 b3 16. Bb1 Qc7 17. g3 c4 18. Nh4 g6 19. Kg2 Rfe8 {½-½ Sutovs,A (2350)-Guberna,A (2396) Webchess op7 sf01 email 2019}) 14. h3 {[%emt 0:00:24]} Bh5 {[%emt 0:00:03]} 15. Nc4 {[%emt 0:00:09]} Nxc4 {[%emt 0:00:18]} 16. Bxc4 {[%emt 0:00:01]} a5 {[%emt 0:00:10]} 17. Be3 {[%emt 0:01:17]} Bf6 {[%emt 0:00:17]} 18. g4 {[%emt 0:00:14]} Bg6 {[%emt 0:00:05]} 19. dxe5 {[%emt 0:00:01]} Bxe5 {[%emt 0:00:43]} 20. Qd3 {[%emt 0:01:29]} c6 {[%emt 0:00:30]} 21. Rad1 {[%emt 0:00:31]} (21. Bg5 $15 Qc7 22. Qe3) 21... bxc3 $17 {[%emt 0:00:27]} 22. bxc3 {[%emt 0:00:00]} d5 $1 {[%emt 0:00:05]} 23. Qd2 {[%emt 0:02:20]} Bxe4 {[%emt 0:00:20]} 24. Bg5 $2 {[%emt 0:00:58]} (24. Ng5 {was called for.} Bg6 (24... dxc4 25. Nxe4 Nf6 26. Qxd8 $11) 25. f4 dxc4 26. fxe5 Nxe5 27. Qxd8 Rbxd8 (27... Rfxd8 $2 28. Bf4 $17) 28. Rxd8 Rxd8 29. Bb6) 24... Bf6 {[%emt 0:01:01]} 25. Rxe4 {[%emt 0:00:14]} (25. Bxf6 {only move.} Qxf6 26. Nd4) 25... dxe4 $19 {[%emt 0:00:08]} 26. Qxd7 {[%emt 0:00:22]} exf3 {[%emt 0:00:03]} 27. Bf4 {[%emt 0:00:27]} Rb7 {[%emt 0:01:09]} 28. Bxf7+ {[%emt 0:00:22]} (28. Qd3 $142) 28... Kh8 $19 {[%emt 0:00:13]} 29. Qxd8 {[%emt 0:00:04]} Rxd8 {[%emt 0:00:00]} 30. Rxd8+ {[%emt 0:00:04]} Bxd8 {[%emt 0:00:00]} 31. Be8 {[%emt 0:00:04]} Bh4 {[%emt 0:00:10]} 32. Bxc6 {[%emt 0:00:06]} Rb1+ {[%emt 0:00:08]} 33. Kh2 {[%emt 0:00:01]} Rb2 {[%emt 0:00:16]} 34. Bg3 {[%emt 0:00:02]} Bxg3+ {[%emt 0:00:05]} 35. Kxg3 {[%emt 0:00:01]} Rc2 {[%emt 0:00:01]} 36. Bxf3 {[%emt 0:00:03]} (36. c4 {might work better.} Rxc4 37. Bb5) 36... g5 {[%emt 0:00:09]} 37. h4 {[%emt 0:00:09]} (37. Bd5 $142) 37... h6 {[%emt 0:00:01]} 38. hxg5 {[%emt 0:00:01]} hxg5 {[%emt 0:00:00]} ({And not} 38... Rxc3 39. gxh6 Ra3 40. g5 Rxa4 41. Bd5 $11) 39. Kg2 {[%emt 0:00:01]} Rxc3 {[%emt 0:00:09]} 40. Be2 {[%emt 0:00:01]} Kg7 {[%emt 0:00:03]} 41. Bb5 {[%emt 0:00:03]} Kf6 {[%emt 0:00:00]} (41... Kf7 $142 42. Kf1 Ke6) 42. Kf1 {[%emt 0:00:03]} Ke5 {[%emt 0:00:04]} 43. Ke2 {[%emt 0:00:01]} Kf4 {[%emt 0:00:01]} 44. Bd7 {[%emt 0:00:01]} Rc7 {[%emt 0:00:03]} (44... Rc2+ $142 45. Kd3 Rxf2 46. Kc4 Rd2 47. Bf5 Rb2 48. Kc5 Rb4 49. Bc8 Ke5 (49... Rxa4 $2 50. Kb5 $19) 50. Bd7 Rd4 51. Bc6 Rxg4 52. Kb5 Kd6 53. Be8 Re4 54. Bc6 Rb4+ 55. Kxa5 Kxc6 56. Kxb4 g4 57. a5 g3 58. a6 Kb6 59. Kc4 g2 (59... Kxa6 {leads to mate.} 60. Kd5 g2 61. Ke4 g1=Q 62. Kf5 Kb6 63. Kf4 Qg6 64. Kf3 Qf5+ 65. Kg3 Kc5 66. Kg2 Kd4 67. Kg3 Ke3 68. Kh4 Qg6 69. Kh3 Kf3 70. Kh4 Qh6#) 60. Kd3 g1=Q (60... g1=R {gets mated.} 61. Kd4 Kxa6 62. Ke3 Kb5 63. Kf4 Kc4 64. Ke5 Re1+ 65. Kf5 Kd4 66. Kg4 Rf1 67. Kg5 Ke4 68. Kg6 Ke5 69. Kg7 Ke6 70. Kg6 Rf5 71. Kg7 Rf6 72. Kg8 Rg6+ 73. Kh8 Ke7 74. Kh7 Kf7 75. Kh8 Rh6#) (60... Kxa6 61. Ke4 g1=Q 62. Kf5 Qc5+ 63. Kg4 Kb5 64. Kg3 Qg5+ 65. Kf3 Kc4 66. Ke4 Kc3 67. Kf3 Kd3 68. Kf2 Qg4 69. Kf1 Ke3 70. Ke1 Qg1#) 61. Ke4 Qg4+ (61... Kxa6 62. Kf5 Qf2+ 63. Kg6 Kb6 64. Kg7 Kc5 65. Kg6 Kd6 66. Kg5 Qf3 67. Kg6 Ke6 68. Kh7 Qg4 69. Kh6 Kf7 70. Kh7 Qh5#) 62. Kd5 Kxa6 63. Ke5 Kb6 64. Kf6 Kc6 65. Ke5 Kc5 66. Kf6 Kd6 67. Kf7 Qg5 68. Kf8 Ke6 69. Ke8 Qg8#) 45. Bb5 {[%emt 0:00:03]} Rc2+ {[%emt 0:00:05]} 46. Kf1 {[%emt 0:00:02]} Kf3 {[%emt 0:00:05]} 0-1

[Event "CCT Julius Baer-D3 2024"]
[Site "Online"]
[Date "2024.09.27"]
[Round "51.2"]
[White "Sarana, Alexey"]
[Black "Deac, Bogdan-Daniel"]
[Result "1/2-1/2"]
[ECO "E48"]
[WhiteElo "2713"]
[BlackElo "2680"]
[Annotator "TA"]
[PlyCount "66"]
[EventDate "2024.09.25"]
[EventType "swiss"]
[EventCountry "NET"]
[SourceTitle "playchess.com"]
[Source "ChessBase"]
[SourceQuality "1"]
[TimeControl "600+2"]

{[%evp 12,66,8,13,21,6,27,23,16,16,16,9,13,8,3,6,43,25,26,35,24,27,33,20,29,-48,-45,-72,-47,-52,-50,-52,-46,-94,-78,-75,-63,-82,-73,-95,-48,-155,-54,-146,-66,-1101,-1091,-1091,-999,-2197,-2156,-1639,0,-1020,0,-710,0]} 1. d4 {[%emt 0:00:02]} Nf6 {[%emt 0:00:03]} 2. c4 {[%emt 0:00:01]} e6 {[%emt 0:00:01]} 3. Nc3 {[%emt 0:00:00]} Bb4 {[%emt 0:00:01]} 4. e3 {[%emt 0:00:01]} O-O {[%emt 0:00:01]} 5. Bd3 {[%emt 0:00:00]} d5 {[%emt 0:00:07]} 6. a3 {[%emt 0:00:01]} dxc4 {[%emt 0:00:01]} 7. Bxc4 {[%emt 0:00:00]} Be7 {[%emt 0:00:02]} 8. Qe2 {[%emt 0:00:00]} c5 {[%emt 0:00:04]} 9. dxc5 {[%emt 0:00:01]} Nbd7 {[%emt 0:03:32] White has an edge.} 10. b4 {[%emt 0:00:01]} a5 {[%emt 0:00:01]} 11. Bb2 {[%emt 0:00:13] And now Nf3 would win.} axb4 {[%emt 0:03:05]} 12. axb4 {[%emt 0:00:00]} Rxa1+ {[%emt 0:00:01]} 13. Bxa1 {[%emt 0:00:01] With the idea Nf3.} b6 {[%emt 0:00:01]} 14. c6 {[%emt 0:00:08] aiming for Nf3.} b5 $1 {[%emt 0:00:19]} ({Avoid the trap} 14... Ne5 $2 15. b5 $18) 15. Bxb5 {[%emt 0:00:09]} Bxb4 $1 {[%emt 0:01:00][%cal Of6e4] Hoping for ...Ne4!} 16. Qa2 {[%emt 0:01:15]} Qb6 $1 {[%emt 0:01:16]} 17. cxd7 {[%emt 0:00:40]} Bb7 {[%emt 0:00:18] [#]} 18. Nge2 $1 {[%emt 0:00:01]} Qxb5 $15 {[%emt 0:00:04]} 19. O-O {[%emt 0:00:08]} Qxd7 {[%emt 0:00:05]} (19... Qc6 {is interesting.} 20. f3 Bc5 21. Kf2 Qxd7 22. Na4 Bxe3+ 23. Kxe3 Ra8) 20. Rc1 {[%emt 0:00:57]} Rc8 {[%emt 0:00:05]} 21. Qb2 {[%emt 0:00:11]} Bf8 {[%emt 0:00:06] A strong pair of Bishops.} 22. Rd1 {[%emt 0:00:22]} (22. Rb1 $15 Ba8 23. h3) 22... Qc6 $40 {[%emt 0:00:07][%csl Gb7][%cal Rc6g2][%mdl 128] Black wants a kill.} 23. f3 {[%emt 0:00:00]} Ba6 {[%emt 0:00:10]} 24. Nd4 {[%emt 0:00:07]} Qc4 {[%emt 0:00:04]} 25. Kf2 {[%emt 0:00:28]} Nd5 {[%emt 0:00:05]} (25... Qc7 $17 26. h3 h6) 26. Ne4 {[%emt 0:00:16]} (26. Nxd5 $15 Qxd5 27. Rc1) 26... Qb4 {[%emt 0:00:05]} (26... Qc7 $17 27. g3 h6) 27. Qa2 {[%emt 0:00:15]} (27. Qxb4 $15 Nxb4 (27... Bxb4 28. h3 $15) 28. g4) 27... Qa3 {[%emt 0:00:03]} (27... Bc4 $17 28. Qd2 Qb6) 28. Qb1 {[%emt 0:00:10][%mdl 8192]} (28. Qxa3 $15 Bxa3 29. Nd2) 28... Qxe3+ $19 {[%emt 0:00:03]} 29. Kg3 {[%emt 0:00:04]} Qf4+ {[%emt 0:00:01]} 30. Kh3 {[%emt 0:00:03]} Qh6+ {[%emt 0:00:03]} 31. Kg3 {[%emt 0:00:01]} Qf4+ $2 {[%emt 0:00:02]} (31... Be7 $19 {[%csl Ge7][%cal Rh6h4]} 32. h3 Qf4+ 33. Kf2 Qh2) 32. Kf2 $2 {[%emt 0:00:47][%mdl 8192]} (32. Kh3 $11 Ne3 33. Nf6+ gxf6 34. Qe4 Qxe4 (34... Qh6+ $2 35. Qh4 $19) 35. fxe4 Nxd1 36. Nxe6 fxe6 37. g4) 32... Qe3+ {[%emt 0:00:01]} 33. Kg3 {[%emt 0:00:01]} Qf4+ $2 {[%emt 0:00:06] Weighted Error Value: White=0.79/Black=0.52.  Loses game:     	White=2     	---        Mistake:       	White=4     	Black=3      Inaccurate:     	White=1     	Black=1      OK:         	White=8     	Black=8      Best:        	White=1     	Black=2      Strong:       	---       	Black=3} ({Better is} 33... Qh6 $19 34. h3 Ne3) 1/2-1/2

[Event "CCT Julius Baer-D3 2024"]
[Site "Online"]
[Date "2024.09.27"]
[Round "51.2"]
[White "Esipenko, Andrey"]
[Black "Kobalia, Mikhail"]
[Result "1/2-1/2"]
[ECO "D02"]
[WhiteElo "2677"]
[BlackElo "2543"]
[Annotator "TA"]
[PlyCount "90"]
[EventDate "2024.09.25"]
[EventType "swiss"]
[EventCountry "NET"]
[SourceTitle "playchess.com"]
[Source "ChessBase"]
[SourceQuality "1"]
[TimeControl "600+2"]

{[%evp 13,90,0,0,0,15,0,0,-19,-7,-14,-3,-4,-13,-8,-8,-14,-9,-9,-10,-10,-10,-27,-13,-29,-25,-25,-29,-35,-35,-58,-33,-70,-38,-40,-27,-38,-25,-31,0,0,0,0,0,0,0,0,0,0,0,0,0,0,0,0,0,0,0,0,0,0,0,0,0,0,16,16,16,16,52,0,52,52,52,52,52,52,52,52,52]} 1. d4 {[%emt 0:00:04]} d5 {[%emt 0:00:04]} 2. Nf3 {[%emt 0:00:01]} Nf6 {[%emt 0:00:02]} 3. Bf4 {[%emt 0:00:05]} c5 {[%emt 0:00:01]} 4. e3 {[%emt 0:00:01]} Nc6 {[%emt 0:00:02]} 5. Nbd2 {[%emt 0:00:02]} Bg4 {[%emt 0:00:01]} 6. c3 {[%emt 0:00:04]} e6 {[%emt 0:00:01]} 7. Qa4 {[%emt 0:00:01] D02: 1 d4 d5 2 Nf3 sidelines, including 2...Nf6 3 g3 and 2...Nf6 3 Bf4.} Nd7 {[%emt 0:00:05]} 8. h3 {[%emt 0:00:25]} Bh5 {[%emt 0:00:02]} 9. Bb5 {[%emt 0:00:27]} Qc8 {[%emt 0:00:03]} 10. Ne5 {[%emt 0:00:08]} Ncxe5 {[%emt 0:00:14]} 11. Bxe5 {[%emt 0:00:00]} a6 {[%emt 0:00:02]} 12. Bxd7+ $146 {[%emt 0:00:39]} ({Predecessor:} 12. Be2 b5 13. Qd1 Nxe5 14. dxe5 Bg6 15. f4 Be7 16. Nf3 O-O 17. Bd3 Bxd3 18. Qxd3 Rb8 {½-½ Jovanic,O (2490)-Horvath,J (2536) Trieste op 19th 2017 (8)}) 12... Qxd7 {[%emt 0:00:00]} 13. Qxd7+ {[%emt 0:00:08]} Kxd7 {[%emt 0:00:00]} 14. dxc5 {[%emt 0:00:12]} f6 $1 {[%emt 0:00:40]} 15. Bd6 {[%emt 0:00:06]} ({Avoid the trap} 15. Bd4 $2 e5 16. a3 exd4 17. cxd4 a5 $19) 15... Bxd6 {[%emt 0:00:01]} 16. cxd6 {[%emt 0:00:00]} Kxd6 {[%emt 0:00:00]} 17. Nb3 {[%emt 0:00:37]} Rhd8 {[%emt 0:00:08]} 18. Kd2 {[%emt 0:00:08]} e5 {[%emt 0:00:03]} 19. Nc1 {[%emt 0:00:02]} a5 {[%emt 0:00:19]} 20. Nd3 {[%emt 0:00:14]} Ra6 {[%emt 0:00:01]} 21. a4 {[%emt 0:00:37]} Bg6 {[%emt 0:00:27]} 22. b4 {[%emt 0:01:00]} Rc8 {[%emt 0:02:06]} 23. bxa5 {[%emt 0:00:31]} Rxa5 {[%emt 0:00:17]} 24. Rhb1 $1 {[%emt 0:00:01]} Ra7 {[%emt 0:00:26]} 25. a5 {[%emt 0:01:20]} Rc6 {[%emt 0:00:55]} 26. Rb5 {[%emt 0:00:50]} Bxd3 {[%emt 0:01:11]} 27. Kxd3 {[%emt 0:00:06]} Rc5 {[%emt 0:00:01]} 28. Rb6+ {[%emt 0:00:42]} Kc7 {[%emt 0:00:04]} 29. Re6 {[%emt 0:00:01]} Raxa5 {[%emt 0:00:09]} (29... Kd7 $5 30. Rb6 $8 Kc7 $11) 30. Rxa5 {[%emt 0:00:06]} ({Don't take} 30. Re7+ Kc6 31. Rxa5 e4+ 32. Ke2 Rxa5) 30... Rxa5 {[%emt 0:00:00]} 31. Re7+ {[%emt 0:00:04]} Kd6 {[%emt 0:00:01]} 32. Rxg7 {[%emt 0:00:06]} Ra2 {[%emt 0:00:01]} 33. f3 {[%emt 0:00:06]} f5 {[%emt 0:00:15]} 34. e4 $1 {[%emt 0:00:05]} dxe4+ {[%emt 0:00:01]} 35. fxe4 {[%emt 0:00:01]} f4 {[%emt 0:00:00]} 36. Rxb7 {[%emt 0:00:32]} Rxg2 {[%emt 0:00:03]} 37. Rxh7 {[%emt 0:00:01]} Rg3+ {[%emt 0:00:28]} 38. Kc4 {[%emt 0:00:01]} Re3 {[%emt 0:00:41]} 39. Rh6+ {[%emt 0:00:06]} Ke7 {[%emt 0:00:01]} 40. Kd5 {[%emt 0:00:03]} f3 {[%emt 0:00:02]} 41. Kxe5 {[%emt 0:00:13]} (41. Re6+ $14 Kf7 42. Rxe5 Rxc3 43. Kd4) 41... f2 {[%emt 0:00:05]} (41... Rxe4+ $11 42. Kxe4 f2 43. Rh7+ Ke6 44. Rh6+ Ke7 45. Rh7+ Ke6 46. Rh6+ Ke7) 42. Re6+ $14 {[%emt 0:00:06]} Kd7 {[%emt 0:00:07]} 43. Rf6 {[%emt 0:00:01]} Rxc3 {[%emt 0:00:07]} 44. Rxf2 {[%emt 0:00:09]} Rxh3 {[%emt 0:00:02]} 45. Rf7+ {[%emt 0:00:10]} Ke8 {[%emt 0:00:01]} 1/2-1/2

[Event "CCT Julius Baer-D3 2024"]
[Site "Online"]
[Date "2024.09.27"]
[Round "51.2"]
[White "Predke, Alexandr"]
[Black "Ponkratov, Pavel"]
[Result "1/2-1/2"]
[ECO "B48"]
[WhiteElo "2671"]
[BlackElo "2564"]
[Annotator "TA"]
[PlyCount "79"]
[EventDate "2024.09.25"]
[EventType "swiss"]
[EventCountry "NET"]
[SourceTitle "playchess.com"]
[Source "ChessBase"]
[SourceQuality "1"]
[TimeControl "600+2"]

{[%evp 15,79,10,73,58,187,187,209,43,56,45,39,42,105,108,54,50,46,0,0,0,0,-15,-6,-10,-15,-36,0,0,-6,0,0,-8,-6,-6,-4,-5,-1,-9,-8,-22,-3,-3,0,-8,-5,-43,129,120,184,174,167,51,50,0,0,0,0,0,0,0,0,0,0,0,0,0]} 1. e4 {[%emt 0:00:03]} c5 {[%emt 0:00:06]} 2. Nf3 {[%emt 0:00:01]} e6 {[%emt 0:00:01]} 3. d4 {[%emt 0:00:02]} cxd4 {[%emt 0:00:01]} 4. Nxd4 {[%emt 0:00:00]} Nc6 {[%emt 0:00:01]} 5. Nc3 {[%emt 0:00:01]} Qc7 {[%emt 0:00:02]} 6. Be3 {[%emt 0:00:02]} a6 {[%emt 0:00:02]} 7. Bd3 {[%emt 0:00:02]} Nf6 {[%emt 0:00:11]} 8. Qe2 $1 {[%emt 0:00:01][%mdl 4] now scores much better than the old 8.0-0.} Ne5 {[%emt 0:00:02] B48: Sicilian: Taimanov: 5 Nc3 Qc7 6 Be3 a6 without Be2.} (8... Bd6 $11) 9. f4 $16 {[%emt 0:01:18]} Neg4 {[%emt 0:00:21]} (9... Nxd3+ $14 10. cxd3 d6) 10. Bd2 $1 $18 {[%emt 0:00:02]} Bc5 {[%emt 0:00:04] [#]} 11. h3 $2 {[%emt 0:00:04]} (11. Nb3 $1 $18 {[%cal Rb3c5] Threatens to win with Nxc5.} Bf2+ 12. Kf1) 11... Bxd4 $14 {[%emt 0:00:23]} 12. hxg4 {[%emt 0:00:01]} Bxc3 $146 {[%emt 0:00:02]} ({Predecessor:} 12... d6 13. g5 Ng8 14. g4 Ne7 15. f5 Bd7 16. Nd1 O-O-O 17. Rh3 Rde8 18. Be3 Nc6 {0-1 Skiber,F (1576)-Kamphausen,J (1791) Leverkusen Bayer op 9th 2011 (7)}) 13. bxc3 {[%emt 0:00:16]} d6 {[%emt 0:00:02]} (13... d5 $14) 14. g5 $16 {[%emt 0:00:46]} Nd7 {[%emt 0:00:04]} 15. c4 {[%emt 0:00:07]} Nc5 {[%emt 0:00:07]} 16. Bc3 {[%emt 0:00:08]} (16. e5 $14) 16... e5 $11 {[%emt 0:00:02]} 17. f5 {[%emt 0:00:07]} Bd7 {[%emt 0:00:04]} 18. Rb1 {[%emt 0:00:49]} Bc6 {[%emt 0:00:04]} 19. Bb4 {[%emt 0:00:23]} O-O-O {[%emt 0:00:04]} 20. Qe3 {[%emt 0:00:07]} Qe7 {[%emt 0:00:41]} 21. Kf2 {[%emt 0:01:44]} f6 {[%emt 0:00:22]} 22. gxf6 {[%emt 0:00:05]} gxf6 {[%emt 0:00:01]} 23. Rh6 {[%emt 0:00:14]} Rhg8 {[%emt 0:00:17]} 24. Rbh1 {[%emt 0:00:02]} Rg7 {[%emt 0:00:08]} 25. R1h2 {[%emt 0:00:09]} Rdg8 {[%emt 0:00:10]} 26. R6h4 {[%emt 0:00:21]} Kb8 {[%emt 0:00:05]} (26... b6 {simplifies} 27. Kf1 a5 28. Bxc5 dxc5 29. Rh6 Ba4) 27. a3 {[%emt 0:00:09]} Be8 {[%emt 0:01:27]} 28. Rh6 {[%emt 0:00:08]} Bc6 {[%emt 0:00:39]} 29. R6h4 {[%emt 0:00:04]} b6 {[%emt 0:00:06]} 30. Qh3 {[%emt 0:00:16] [#]} Rg3 $2 {[%emt 0:02:14]} (30... Qd7 $1 $15 {stays ahead.}) 31. Qxg3 $16 {[%emt 0:00:05]} Rxg3 {[%emt 0:00:01]} 32. Kxg3 {[%emt 0:00:00]} Qg7+ {[%emt 0:00:01]} 33. Kf2 {[%emt 0:00:23]} ({Only move:} 33. Rg4 $18 Qe7 34. Kf3) 33... Qg5 $14 {[%emt 0:00:14]} 34. Ke2 {[%emt 0:01:06]} (34. g3 $1 $14) 34... b5 $11 {[%emt 0:00:18]} 35. cxb5 {[%emt 0:00:06]} (35. Rxh7 bxc4 (35... Nxe4 $2 36. Rh8+ Ka7 37. R2h7+ Bb7 38. Bxe4 $18) (35... Qg4+ 36. Kd2 $17) 36. Bxc4 (36. Rh8+ $2 Ka7 $17) 36... Qg4+ (36... Nxe4 37. Rh8+ Ka7 38. R2h7+ Bb7 39. Rxb7+ Kxb7 40. Bd5+ Kc7 41. Bxe4 $14) 37. Kd2 Bxe4 (37... Qxe4 38. R2h4 $15) (37... Nxe4+ 38. Kc1 $16) 38. Bxc5 dxc5) 35... axb5 {[%emt 0:00:16]} 36. Bd2 {[%emt 0:00:26]} ({Reject} 36. Bxc5 dxc5 37. Kf2 c4 $17 (37... Qd2+ 38. Be2 $11)) 36... Qg3 {[%emt 0:00:04]} 37. Be1 {[%emt 0:00:04]} Qg5 {[%emt 0:00:38]} 38. Bd2 {[%emt 0:00:10]} Qg3 {[%emt 0:00:01]} 39. Be1 {[%emt 0:00:20]} Qg5 {[%emt 0:00:02]} 40. Bd2 {[%emt 0:00:01]} 1/2-1/2

[Event "CCT Julius Baer-D3 2024"]
[Site "Online"]
[Date "2024.09.27"]
[Round "51.2"]
[White "Sargissian, Gabriel"]
[Black "Hakobyan, Aram"]
[Result "1/2-1/2"]
[ECO "D78"]
[WhiteElo "2646"]
[BlackElo "2617"]
[Annotator "TA"]
[PlyCount "122"]
[EventDate "2024.09.25"]
[EventType "swiss"]
[EventCountry "NET"]
[SourceTitle "playchess.com"]
[Source "ChessBase"]
[SourceQuality "1"]
[TimeControl "600+2"]

{[%evp 15,122,25,28,23,36,20,43,21,18,16,43,14,32,16,18,29,35,25,36,39,23,20,24,31,33,24,36,15,52,48,49,38,29,39,60,48,48,37,63,47,55,17,56,34,23,7,11,9,7,8,44,45,64,31,110,114,115,130,136,137,139,145,256,154,302,287,302,302,302,302,302,287,287,287,287,287,300,329,329,330,470,479,482,183,176,161,165,161,146,14,14,14,14,0,0,0,0,0,0,0,0,0,0,0,0,0,0,0,0]} 1. Nf3 {[%emt 0:00:03]} d5 {[%emt 0:00:05]} 2. g3 {[%emt 0:00:01]} g6 {[%emt 0:00:04]} 3. Bg2 {[%emt 0:00:03]} Bg7 {[%emt 0:00:01]} 4. d4 {[%emt 0:00:00]} Nf6 {[%emt 0:00:01]} 5. O-O {[%emt 0:00:02]} O-O {[%emt 0:00:00]} 6. c4 {[%emt 0:00:00]} c6 {[%emt 0:00:01]} 7. b3 {[%emt 0:00:01]} Bf5 {[%emt 0:00:05]} 8. Bb2 {[%emt 0:00:06]} Nbd7 {[%emt 0:00:01]} 9. e3 {[%emt 0:00:05]} a5 {[%emt 0:00:29][%cal Oa5a4]} 10. Nc3 {[%emt 0:00:06]} Ne4 {[%emt 0:00:16]} 11. Qe2 {[%emt 0:02:24] Weiß steht etwas besser.} Nxc3 {[%emt 0:00:44]} 12. Bxc3 {[%emt 0:00:03]} Be4 {[%emt 0:00:01]} 13. Rfd1 {[%emt 0:00:11]} a4 {[%emt 0:00:06]} 14. Bf1 {[%emt 0:00:17]} Bxf3 {[%emt 0:01:39]} 15. Qxf3 {[%emt 0:00:02]} e6 {[%emt 0:00:00]} 16. b4 {[%emt 0:00:49]} Nb6 {[%emt 0:00:34]} 17. c5 {[%emt 0:00:13]} Nd7 {[%emt 0:00:01]} 18. b5 {[%emt 0:00:01]} Re8 {[%emt 0:00:10]} ({Viel schwächer wäre} 18... Nxc5 19. Bb4 Ne4 20. Bxf8 Qxf8 21. bxc6 bxc6 22. Rac1 $16) 19. Rdc1 {[%emt 0:01:45]} e5 {[%emt 0:00:10]} 20. Rab1 {[%emt 0:00:16]} exd4 {[%emt 0:00:05]} 21. Bxd4 {[%emt 0:01:17]} Ne5 {[%emt 0:00:13]} 22. Qd1 {[%emt 0:00:04]} h5 {[%emt 0:00:50]} 23. bxc6 {[%emt 0:00:12]} bxc6 {[%emt 0:00:01]} 24. Rb6 {[%emt 0:00:25]} Qd7 {[%emt 0:00:07]} 25. Rcb1 {[%emt 0:00:18]} a3 {[%emt 0:00:34]} 26. h4 {[%emt 0:00:05]} Rac8 {[%emt 0:00:33]} 27. Kg2 {[%emt 0:00:28]} Qf5 {[%emt 0:00:08]} 28. Be2 {[%emt 0:00:03]} Ng4 {[%emt 0:00:33]} 29. Bxg4 {[%emt 0:00:35]} hxg4 {[%emt 0:00:01]} 30. Bxg7 {[%emt 0:00:01]} Kxg7 {[%emt 0:00:00]} 31. Qd4+ {[%emt 0:00:06]} Kg8 {[%emt 0:00:01]} 32. Qf4 {[%emt 0:00:03]} Qe4+ {[%emt 0:02:03]} 33. Qxe4 {[%emt 0:00:02]} Rxe4 $14 {[%emt 0:00:00][%mdl 4096] Endspiel. KRR-KRR} 34. R1b4 {[%emt 0:00:02]} Rce8 {[%emt 0:01:13]} (34... Kg7 $14) 35. Rxe4 $16 {[%emt 0:00:07]} Rxe4 {[%emt 0:00:01]} 36. Rxc6 {[%emt 0:00:01] KR-KR} Rc4 {[%emt 0:00:01]} 37. Ra6 {[%emt 0:00:06]} Rxc5 {[%emt 0:00:01]} 38. Rxa3 {[%emt 0:00:01]} Rc2 {[%emt 0:00:05]} (38... Rc4 $16 {war angesagt.} 39. Rd3 Ra4) 39. Ra4 {[%emt 0:00:08]} f5 {[%emt 0:00:14]} (39... Kg7 $16 {war nötig.} 40. Rxg4 Rxa2) 40. Ra7 $18 {[%emt 0:00:11]} Rd2 {[%emt 0:00:01]} 41. Kf1 {[%emt 0:00:13]} d4 {[%emt 0:00:01]} 42. exd4 {[%emt 0:00:01]} Rxd4 {[%emt 0:00:00]} 43. a4 {[%emt 0:00:00]} Rd2 {[%emt 0:00:01]} 44. a5 {[%emt 0:00:03]} Ra2 {[%emt 0:00:01]} 45. a6 {[%emt 0:00:00]} Kf8 {[%emt 0:00:03]} 46. Ke1 {[%emt 0:00:03]} Ke8 {[%emt 0:00:05]} 47. Kd1 {[%emt 0:00:11]} Kd8 {[%emt 0:00:01]} (47... f4 {ist wohl besser.} 48. Ke1 (48. gxf4 Rxf2 49. Rg7 Ra2 $14) 48... f3) 48. Ra8+ $1 {[%emt 0:00:07]} Kc7 {[%emt 0:00:01]} 49. a7 $2 {[%emt 0:00:00]} (49. Ke1 Ra4 50. a7) 49... Kb7 {[%emt 0:00:02]} 50. Rg8 {[%emt 0:00:08]} Kxa7 {[%emt 0:00:01] [#]} 51. Ke1 {[%emt 0:00:05]} ({Schwächer ist} 51. Rxg6 Rxf2 52. Rf6 Kb7 $11) 51... Ra6 {[%emt 0:00:00] [#]} 52. Ke2 {[%emt 0:00:01]} (52. Kd2 $1 $16 {[%cal Rd2e3] Und jetzt Ke3 wäre schön.} f4 53. gxf4) 52... Re6+ $11 {[%emt 0:00:03] Die Stellung ist ausgeglichen.} 53. Kd3 {[%emt 0:00:01] Kd4 wäre nun fies.} Kb7 {[%emt 0:00:00]} 54. Kd4 {[%emt 0:00:01] Kd5 ist eine echte Drohung.} Kc6 {[%emt 0:00:02]} 55. Ra8 {[%emt 0:00:03]} Kd7 {[%emt 0:00:03]} 56. Ra7+ {[%emt 0:00:06]} Ke8 {[%emt 0:00:00]} 57. Kd3 {[%emt 0:00:01]} Kf8 {[%emt 0:00:01]} 58. Rb7 {[%emt 0:00:01]} Kg8 {[%emt 0:00:01]} 59. Ra7 {[%emt 0:00:01]} Kf8 {[%emt 0:00:01]} 60. Rb7 {[%emt 0:00:01]} Kg8 {[%emt 0:00:01]} 61. Ra7 {[%emt 0:00:00]} Kf8 {[%emt 0:00:00] Schwarz rettet sich ins Remis.   Gewichteter Fehlerwert: Weiß=0.20 (präzise) /Schwarz=0.18 (sehr präzise) .  Fehler:       	Weiß=2     	Schwarz=4     Ungenau:       	Weiß=4     	Schwarz=5     OK:         	Weiß=20    	Schwarz=20    Bester:       	Weiß=3     	Schwarz=3     Stark:        	Weiß=1     	---} 1/2-1/2